bitfinex-derivatives/quotes_SOLF0:USTF0_20250929
["timestamp","ask_amount","ask_price","bid_price","bid_amount"]
[1759186980791,7.36,213.59,213.56,11.8615]
[1759186981190,62.27713211,213.6,213.53,4.212]
[1759186981390,7.36,213.59,213.53,4.212]
[1759186981792,7.36,213.59,213.51,4.2125]
[1759186982590,7.36,213.57,213.51,4.2125]
[1759186983591,7.36,213.57,213.48,11.863]
[1759186983791,5.21380292,213.59,213.48,11.863]
[1759186984298,7.36,213.54,213.48,11.863]
[1759186987113,122.65838826,213.55,213.48,7.65]
[1759186987910,113.58,213.55,213.48,9.34838826]
[1759186989016,113.58,213.56,213.52,4.2122]
[1759186989209,11.5712,213.58,213.51,1.69838826]
[1759186989409,120.94,213.58,213.52,7.65]
[1759186989611,314.66,213.61,213.56,4.2115]
[1759186989918,113.58,213.6,213.57,7.65]
[1759186990208,7.36,213.59,213.57,7.65]
[1759186991013,7.36,213.59,213.57,11.8613]
[1759186991412,113.58,213.6,213.57,11.8613]
[1759186991612,3.32474519,213.59,213.58,11.861]
[1759186994420,3.32474519,213.61,213.6,4.2108]
[1759186994619,32.28474519,213.65,213.6,7.88]
[1759186994815,3.32474519,213.64,213.59,1.69838826]
[1759186995011,3.32474519,213.63,213.6,7.88]
[1759186995214,28.96,213.65,213.62,7.88]
[1759186995413,3.31798419,213.64,213.62,7.88]
[1759186995614,3.31798419,213.63,213.62,7.88]
[1759186997323,3.31798419,213.64,213.62,7.88]
[1759186997521,36.7,213.65,213.62,7.88]
[1759186997820,3.31504947,213.64,213.62,7.88]
[1759186998025,3.31504947,213.63,213.62,7.88]
[1759186998318,3.31504947,213.64,213.62,7.88]
[1759186998520,3.31504947,213.63,213.62,7.88]
[1759186998722,3.31504947,213.64,213.62,7.88]
[1759186998922,3.31504947,213.63,213.62,7.88]
[1759186999119,3.31504947,213.64,213.62,7.88]
[1759187003314,11.05504947,213.64,213.62,7.88]
[1759187003519,7.74,213.64,213.62,7.88]
[1759187004019,7.74,213.64,213.59,15.86467619]
[1759187004020,7.74,213.67,213.6,7.88]
[1759187004318,7.35,213.65,213.6,7.88]
[1759187004535,7.35,213.63,213.6,7.36]
[1759187004718,7.35,213.63,213.59,1.69838826]
[1759187005020,113.54,213.67,213.6,7.36]
[1759187005225,3.3101726,213.66,213.62,7.36]
[1759187005426,3.3101726,213.66,213.61,1.69838826]
[1759187005725,10.6601726,213.66,213.61,1.69838826]
[1759187005924,3.3101726,213.65,213.62,7.36]
[1759187006627,3.3101726,213.65,213.61,5.90888826]
[1759187007224,7.35,213.73,213.64,7.36]
[1759187007429,7.35,213.71,213.68,1.69838826]
[1759187007626,10.6587852,213.7,213.66,1.69838826]
[1759187007925,3.3087852,213.69,213.67,7.36]
[1759187008428,3.3087852,213.69,213.68,7.36]
[1759187008625,3.3087852,213.72,213.68,7.36]
[1759187008825,7.35,213.71,213.68,7.36]
[1759187009025,3.3087852,213.7,213.68,9.05838826]
[1759187009221,7.35,213.71,213.69,7.36]
[1759187009418,37.8379,213.75,213.69,7.36]
[1759187009624,3.27769315,213.74,213.68,9.05838826]
[1759187009821,3.27769315,213.74,213.7,1.69838826]
[1759187010027,3.27769315,213.75,213.7,1.69838826]
[1759187010228,3.27769315,213.75,213.71,7.36]
[1759187010421,3.27769315,213.75,213.72,7.36]
[1759187011023,3.27769315,213.75,213.7,1.69838826]
[1759187011221,3.27769315,213.75,213.72,13.26668826]
[1759187011430,10.62769315,213.75,213.72,13.26668826]
[1759187011734,3.27769315,213.74,213.72,13.26668826]
[1759187012329,7.35,213.76,213.7,1.69838826]
[1759187012531,3.27383281,213.75,213.73,7.36]
[1759187012727,0.81435893,213.84,213.75,7.36]
[1759187012728,7.35,213.81,213.75,7.36]
[1759187012932,10.62297338,213.8,213.76,9.05838826]
[1759187013129,3.27297338,213.79,213.76,1.69838826]
[1759187013332,7.35,213.82,213.79,7.36]
[1759187013525,3.27093729,213.81,213.74,1.69838826]
[1759187013730,7.35,213.8,213.73,9.05838826]
[1759187013926,3.27093729,213.79,213.73,9.05838826]
[1759187014426,3.27093729,213.79,213.76,7.36]
[1759187014625,10.6194707,213.8,213.76,7.36]
[1759187014932,7.35,213.8,213.76,7.36]
[1759187015231,7.35,213.8,213.75,5.90598826]
[1759187015433,7.35,213.8,213.76,7.36]
[1759187016638,7.35,213.8,213.77,1.69838826]
[1759187016936,121.05,213.84,213.78,7.36]
[1759187017137,7.35,213.82,213.78,7.36]
[1759187017333,3.26668042,213.81,213.78,7.36]
[1759187017538,7.35,213.82,213.78,7.36]
[1759187017832,7.35,213.82,213.77,1.69838826]
[1759187018333,7.35,213.82,213.78,7.36]
[1759187018933,7.35,213.82,213.77,1.69838826]
[1759187019132,7.35,213.82,213.78,7.36]
[1759187020039,7.35,213.82,213.77,5.90558826]
[1759187020240,7.35,213.82,213.78,7.36]
[1759187020741,7.35,213.83,213.78,7.36]
[1759187020940,7.35,213.81,213.78,7.36]
[1759187021342,113.68,213.84,213.78,7.36]
[1759187021640,10.61229368,213.83,213.75,13.26618826]
[1759187021835,3.26229368,213.82,213.75,13.26618826]
[1759187023244,3.26229368,213.82,213.75,11.5678]
[1759187023439,7.35,213.81,213.75,13.26618826]
[1759187023942,7.35,213.81,213.75,7.36]
[1759187026244,113.58,213.81,213.75,9.05838826]
[1759187026950,113.58,213.82,213.75,9.05838826]
[1759187027139,3.26174267,213.81,213.75,9.05838826]
[1759187027747,3.26174267,213.81,213.77,4.2072]
[1759187028248,3.26174267,213.81,213.78,7.36]
[1759187030042,3.26174267,213.81,213.77,4.2072]
[1759187030242,3.26174267,213.81,213.78,7.36]
[1759187031242,3.26174267,213.81,213.77,4.2072]
[1759187031645,3.26174267,213.81,213.78,7.36]
[1759187031847,10.61174267,213.81,213.78,7.36]
[1759187032045,3.26174267,213.8,213.78,7.36]
[1759187032243,3.26174267,213.8,213.75,4.2077]
[1759187032549,7.35,213.79,213.71,1.69838826]
[1759187032749,116.84174267,213.78,213.71,1.69838826]
[1759187033048,113.58,213.78,213.72,7.36]
[1759187033249,3.26766417,213.77,213.72,7.36]
[1759187033541,3.26766417,213.77,213.73,4.2081]
[1759187033741,3.26766417,213.77,213.74,7.36]
[1759187033943,10.61766417,213.77,213.74,7.36]
[1759187034139,7.35,213.77,213.74,7.36]
[1759187034846,7.59,213.77,213.71,4.2085]
[1759187035242,7.59,213.75,213.71,11.4285]
[1759187035447,7.59,213.75,213.72,7.22]
[1759187036749,121.19,213.8,213.73,7.22]
[1759187036950,3.27125372,213.79,213.73,7.22]
[1759187037247,10.86125372,213.79,213.76,11.4275]
[1759187037448,7.59,213.79,213.76,11.4275]
[1759187037841,3.27194522,213.78,213.76,11.4275]
[1759187038046,7.59,213.79,213.76,11.4275]
[1759187038248,3.27268249,213.78,213.76,11.4275]
[1759187040358,314.52,213.85,213.76,11.4275]
[1759187040359,3.27268249,213.8,213.78,4.2072]
[1759187040551,3.27268249,213.81,213.79,7.22]
[1759187040753,3.27268249,213.84,213.79,7.22]
[1759187040945,3.27268249,213.83,213.79,7.22]
[1759187041147,3.27268249,213.82,213.79,7.22]
[1759187041345,3.27268249,213.84,213.81,11.4264]
[1759187041547,3.27268249,213.83,213.82,7.22]
[1759187041745,3.27268249,213.85,213.8,1.69838826]
[1759187041947,3.27268249,213.86,213.8,1.69838826]
[1759187042345,3.27268249,213.86,213.78,7.22]
[1759187042551,3.27268249,213.86,213.8,1.69838826]
[1759187043355,10.86268249,213.85,213.78,8.91838826]
[1759187043553,3.27268249,213.84,213.78,8.91838826]
[1759187044650,10.86268249,213.84,213.79,4.2069]
[1759187044846,7.59,213.82,213.79,11.4269]
[1759187045049,7.59,213.86,213.79,4.2069]
[1759187045256,3.2757326,213.85,213.79,4.2069]
[1759187045548,10.8657326,213.84,213.8,7.22]
[1759187045754,3.2757326,213.83,213.8,1.69838826]
[1759187045954,7.59,213.88,213.81,7.22]
[1759187045955,3.2757326,213.87,213.81,7.22]
[1759187046152,3.2757326,213.86,213.82,1.69838826]
[1759187046353,3.2757326,213.86,213.78,65.4448]
[1759187046354,3.2757326,213.87,213.84,4.2059]
[1759187046549,10.8657326,213.9,213.81,65.437]
[1759187046753,3.2757326,213.89,213.85,4.2056]
[1759187046953,3.2757326,213.89,213.86,7.22]
[1759187047153,7.59,213.93,213.83,7.22]
[1759187047356,3.27532503,213.92,213.84,7.22]
[1759187047559,3.27532503,213.92,213.89,7.22]
[1759187048157,10.86532503,213.92,213.89,7.22]
[1759187048458,7.59,213.92,213.89,7.22]
[1759187052461,7.59,213.92,213.88,11.4251]
[1759187052856,113.66,213.95,213.85,18.05618023]
[1759187053058,10.86447313,213.94,213.85,4.2057]
[1759187053251,7.59,213.92,213.85,4.2057]
[1759187053454,3.27447313,213.91,213.85,4.2057]
[1759187053655,10.86447313,213.9,213.82,4.2063]
[1759187053854,3.27447313,213.89,213.82,4.2063]
[1759187056060,3.27447313,213.89,213.83,4.206]
[1759187056661,3.27447313,213.89,213.85,7.94]
[1759187056862,3.27447313,213.89,213.82,7.94]
[1759187057667,11.12447313,213.89,213.85,12.1457]
[1759187057869,7.85,213.89,213.85,12.1457]
[1759187059065,7.85,213.96,213.84,7.94]
[1759187059266,116.95573003,213.95,213.85,7.94]
[1759187059466,3.27573003,213.94,213.85,7.94]
[1759187059775,3.27573003,213.93,213.87,4.2054]
[1759187060067,11.12573003,213.94,213.87,4.2054]
[1759187060365,3.27573003,213.93,213.87,4.2054]
[1759187061367,3.27573003,213.93,213.89,7.94]
[1759187061368,11.12573003,213.93,213.89,7.94]
[1759187061562,7.85,213.93,213.89,7.94]
[1759187061764,113.68,213.95,213.89,7.94]
[1759187061962,3.27430225,213.94,213.89,7.94]
[1759187062157,7.85,213.93,213.89,7.94]
[1759187062362,121.53,213.95,213.89,7.94]
[1759187062568,7.85,213.93,213.9,7.94]
[1759187062765,113.72,213.95,213.86,7.94]
[1759187062966,3.27376531,213.94,213.86,7.94]
[1759187063166,7.85,213.93,213.89,4.2049]
[1759187063366,113.72,213.95,213.89,4.2049]
[1759187063569,3.27320369,213.94,213.89,4.2049]
[1759187063766,7.85,213.93,213.87,4.2054]
[1759187067076,7.85,213.93,213.88,4.2051]
[1759187067277,121.55,213.93,213.88,4.2051]
[1759187067581,7.62,213.96,213.86,2.64468119]
[1759187067781,116.97196732,213.95,213.87,7.48]
[1759187067981,113.7,213.95,213.87,7.48]
[1759187068379,113.7,213.95,213.9,4.2047]
[1759187068580,7.62,213.94,213.9,11.6847]
[1759187069178,7.62,213.94,213.91,7.48]
[1759187069581,7.62,213.94,213.91,11.6845]
[1759187070673,7.62,213.94,213.89,11.685]
[1759187070875,7.62,213.94,213.87,7.48]
[1759187071578,113.66,213.95,213.9,7.48]
[1759187072988,7.62,213.94,213.9,7.48]
[1759187073188,113.66,213.95,213.9,7.48]
[1759187073383,7.62,213.94,213.9,7.48]
[1759187073589,113.66,213.95,213.9,7.48]
[1759187073787,7.62,213.94,213.9,7.48]
[1759187074383,7.62,213.93,213.9,7.48]
[1759187075396,7.62,213.93,213.9,11.6847]
[1759187078593,7.62,213.97,213.9,7.48]
[1759187078894,113.58,213.98,213.9,7.48]
[1759187079293,121.2,213.98,213.9,7.48]
[1759187079895,7.62,213.97,213.93,4.2042]
[1759187080696,113.58,213.98,213.93,4.2042]
[1759187080895,7.62,213.96,213.93,4.2042]
[1759187082392,7.62,213.96,213.93,11.6842]
[1759187083895,7.62,213.96,213.93,4.2042]
[1759187084195,3.29255399,213.95,213.94,11.684]
[1759187084392,3.29255399,213.96,213.94,11.684]
[1759187084591,3.29255399,213.95,213.94,11.684]
[1759187084791,3.29255399,213.96,213.94,11.684]
[1759187084992,3.29255399,213.95,213.94,11.684]
[1759187085295,3.29255399,213.96,213.94,11.684]
[1759187085594,3.29255399,213.95,213.94,11.684]
[1759187085796,3.29255399,213.96,213.94,11.684]
[1759187085996,3.29255399,213.95,213.94,11.684]
[1759187086197,3.29255399,213.96,213.94,11.684]
[1759187086496,3.29255399,213.95,213.94,11.684]
[1759187086691,3.29255399,213.96,213.94,11.684]
[1759187086892,3.29255399,213.95,213.94,11.684]
[1759187087296,3.29255399,213.96,213.94,11.684]
[1759187087496,121.22,213.97,213.94,11.684]
[1759187087497,3.29255399,213.95,213.94,11.684]
[1759187087697,3.29255399,213.96,213.94,11.684]
[1759187087898,3.29255399,213.95,213.94,11.684]
[1759187088395,3.29255399,213.95,213.92,11.6844]
[1759187088698,7.62,213.99,213.9,7.48]
[1759187088894,116.83459133,213.98,213.91,7.48]
[1759187089094,3.29459133,213.97,213.91,7.48]
[1759187089296,3.29459133,213.96,213.91,7.48]
[1759187089499,3.29459133,213.95,213.91,7.48]
[1759187089692,113.54,213.98,213.91,7.48]
[1759187089892,3.29571113,213.97,213.91,7.48]
[1759187090092,3.29571113,213.96,213.9,65.4092]
[1759187090292,3.29571113,213.95,213.91,7.48]
[1759187090497,113.54,213.98,213.91,7.48]
[1759187090700,3.29720058,213.97,213.91,7.48]
[1759187090998,3.29720058,213.96,213.9,65.4092]
[1759187091202,3.29720058,213.95,213.9,65.4092]
[1759187091497,3.29720058,213.94,213.91,7.48]
[1759187091698,113.54,213.98,213.91,7.48]
[1759187091997,3.29854168,213.97,213.91,7.48]
[1759187092197,3.29854168,213.96,213.91,7.48]
[1759187092398,3.29854168,213.95,213.91,7.48]
[1759187092599,3.29854168,213.94,213.9,65.4092]
[1759187092794,113.54,213.98,213.92,2.64468119]
[1759187093099,3.29865174,213.97,213.93,7.48]
[1759187093300,7.62,214.02,213.93,7.48]
[1759187093501,3.2974129,214.01,213.93,7.48]
[1759187093703,3.2974129,214.0,213.93,7.48]
[1759187093895,3.2974129,213.99,213.93,7.48]
[1759187094095,3.2974129,213.98,213.93,7.48]
[1759187094400,7.62,214.02,213.93,7.73]
[1759187094599,3.29668995,214.01,213.96,4.2036]
[1759187094801,3.29668995,214.0,213.96,4.2036]
[1759187094991,7.58,213.98,213.96,4.2036]
[1759187095396,7.58,214.01,213.96,4.2036]
[1759187095591,3.29604773,214.0,213.96,4.2036]
[1759187095797,7.58,213.98,213.96,4.2036]
[1759187097494,7.58,214.01,213.96,4.2036]
[1759187097701,7.58,213.99,213.96,4.2036]
[1759187098002,2.64468119,214.05,213.9,7.73]
[1759187098003,7.58,213.97,213.9,7.73]
[1759187098803,3.2490815,213.96,213.9,7.73]
[1759187099302,10.8290815,213.95,213.86,7.73]
[1759187099499,7.58,213.93,213.86,7.73]
[1759187100005,7.58,213.91,213.82,7.73]
[1759187100699,4.2042,213.94,213.86,4.2055]
[1759187100898,15.96,213.95,213.82,7.73]
[1759187100899,10.83061038,213.93,213.82,7.73]
[1759187101109,7.58,213.91,213.82,7.73]
[1759187101305,7.58,213.91,213.79,65.4433]
[1759187101306,7.58,213.89,213.79,7.73]
[1759187101599,10.22468119,213.87,213.79,7.73]
[1759187101899,2.64468119,213.84,213.75,7.73]
[1759187102205,7.58,213.82,213.74,4.2078]
[1759187102592,7.58,213.8,213.74,4.2078]
[1759187105007,7.58,213.8,213.71,4.2086]
[1759187105202,7.58,213.78,213.71,4.2086]
[1759187105711,7.58,213.77,213.68,11.939]
[1759187106104,7.58,213.77,213.68,4.209]
[1759187106403,7.58,213.74,213.65,11.9396]
[1759187106702,7.58,213.73,213.65,7.73]
[1759187106902,3.24470362,213.72,213.65,7.73]
[1759187107303,7.58,213.73,213.65,7.73]
[1759187108205,1.69572682,213.71,213.65,7.73]
[1759187108405,7.58,213.7,213.64,4.2099]
[1759187109912,1.69572682,213.68,213.61,11.9405]
[1759187110112,7.58,213.67,213.61,11.9405]
[1759187111707,7.58,213.67,213.58,5.90672682]
[1759187112507,9.27572682,213.67,213.58,5.90672682]
[1759187113710,1.69572682,213.71,213.61,74.92272682]
[1759187114007,33.48,213.72,213.61,74.92272682]
[1759187114615,7.89,213.71,213.61,74.92272682]
[1759187115007,1.69572682,213.7,213.64,4.2099]
[1759187118119,7.89,213.69,213.61,11.9404]
[1759187119318,7.89,213.66,213.57,8.02]
[1759187119514,7.89,213.63,213.57,8.02]
[1759187119718,7.89,213.6,213.53,8.02]
[1759187120219,1.69572682,213.58,213.51,4.2125]
[1759187120808,7.89,213.57,213.51,4.2125]
[1759187121807,7.89,213.57,213.52,4.2122]
[1759187122022,1.69572682,213.58,213.51,65.5286]
[1759187122216,1.69572682,213.58,213.52,8.02]
[1759187125038,1.69572682,213.58,213.46,67.23942682]
[1759187125319,1.69572682,213.55,213.47,7.92]
[1759187125919,1.69572682,213.55,213.48,4.2131]
[1759187126220,1.69572682,213.52,213.43,7.92]
[1759187127623,1.69572682,213.52,213.46,4.2135]
[1759187127931,7.38,213.54,213.46,7.92]
[1759187128122,7.38,213.54,213.47,4.2132]
[1759187128419,7.38,213.54,213.46,7.92]
[1759187128828,7.38,213.54,213.51,4.2125]
[1759187131229,65.4932,213.63,213.47,1.69572682]
[1759187131429,9.07572682,213.57,213.48,7.92]
[1759187132725,7.38,213.53,213.49,4.2129]
[1759187133032,7.38,213.53,213.44,7.92]
[1759187134123,1.69572682,213.51,213.45,4.2137]
[1759187134331,1.69572682,213.51,213.44,7.92]
[1759187134626,7.38,213.5,213.44,7.92]
[1759187134831,7.38,213.49,213.4,65.5626]
[1759187135035,7.38,213.49,213.45,7.92]
[1759187135833,9.07572682,213.51,213.45,12.1336]
[1759187137831,9.07572682,213.51,213.46,4.2134]
[1759187138036,1.69572682,213.53,213.44,7.92]
[1759187138331,32.32,213.54,213.44,9.61572682]
[1759187138536,32.32,213.54,213.5,4.2127]
[1759187138727,7.38,213.53,213.5,4.2127]
[1759187140335,31.15572682,213.56,213.5,4.2127]
[1759187140537,7.38,213.55,213.51,4.2124]
[1759187141637,1.69572682,213.56,213.51,4.2124]
[1759187141834,7.38,213.55,213.51,4.2124]
[1759187142940,1.69572682,213.56,213.51,4.2124]
[1759187143245,10.63288691,213.55,213.49,12.1329]
[1759187143436,10.63288691,213.54,213.49,12.1329]
[1759187143632,3.25288691,213.53,213.49,12.1329]
[1759187144137,7.38,213.54,213.49,12.1329]
[1759187144138,3.25288691,213.52,213.49,12.1329]
[1759187144337,7.38,213.54,213.49,12.1329]
[1759187144539,3.26329977,213.53,213.49,12.1329]
[1759187144734,10.64329977,213.52,213.49,4.2129]
[1759187144939,7.38,213.52,213.49,4.2129]
[1759187145238,7.38,213.55,213.49,12.1329]
[1759187145542,7.38,213.53,213.49,12.1329]
[1759187145742,3.26337872,213.52,213.49,12.1329]
[1759187146442,3.26337872,213.51,213.49,12.1329]
[1759187146642,7.38,213.53,213.49,12.1329]
[1759187146842,3.2669402,213.52,213.49,12.1329]
[1759187147042,3.2669402,213.51,213.49,12.1329]
[1759187147242,7.38,213.53,213.49,12.1329]
[1759187147444,3.26938036,213.52,213.49,12.1329]
[1759187147644,3.26938036,213.51,213.49,12.1329]
[1759187147845,7.38,213.53,213.49,12.1329]
[1759187148045,3.26947467,213.52,213.49,12.1329]
[1759187148239,3.26947467,213.51,213.49,12.1329]
[1759187148446,3.26947467,213.5,213.49,12.1329]
[1759187149139,88.51572682,213.56,213.51,4.2125]
[1759187149340,7.38,213.54,213.51,4.2125]
[1759187149544,3.27202386,213.53,213.51,4.2125]
[1759187149847,3.27202386,213.52,213.49,12.1329]
[1759187150045,3.27202386,213.51,213.5,7.92]
[1759187152742,3.27202386,213.51,213.5,10.07572682]
[1759187153050,12.59380292,213.63,213.53,7.92]
[1759187153242,7.38,213.63,213.56,7.92]
[1759187153841,7.38,213.63,213.59,4.2108]
[1759187154048,314.44,213.65,213.58,7.92]
[1759187154851,7.39,213.64,213.58,7.92]
[1759187155050,7.39,213.64,213.55,7.7]
[1759187155252,9.08572682,213.64,213.55,9.39572682]
[1759187155750,9.08572682,213.64,213.57,4.2112]
[1759187158448,7.39,213.64,213.57,4.2112]
[1759187159248,11.6001,213.64,213.57,4.2112]
[1759187160444,7.39,213.64,213.57,4.2112]
[1759187160647,314.44,213.65,213.58,7.7]
[1759187160847,7.39,213.63,213.59,1.69572682]
[1759187161054,7.39,213.63,213.57,1.69572682]
[1759187161253,7.39,213.63,213.56,7.7]
[1759187161753,7.39,213.63,213.56,11.9114]
[1759187162654,11.6004,213.63,213.56,11.9114]
[1759187164864,3.27008237,213.62,213.56,11.9114]
[1759187165052,10.66008237,213.61,213.57,7.7]
[1759187165252,3.27008237,213.6,213.57,7.7]
[1759187166057,3.27008237,213.6,213.58,7.7]
[1759187167054,3.27008237,213.6,213.59,7.7]
[1759187167359,321.83,213.65,213.59,7.7]
[1759187167360,117.35008237,213.64,213.59,1.69572682]
[1759187167658,3.27008237,213.63,213.6,7.7]
[1759187167861,3.27008237,213.62,213.6,7.7]
[1759187168059,3.27008237,213.63,213.6,7.7]
[1759187168355,3.27008237,213.63,213.59,1.69572682]
[1759187168555,34.4,213.65,213.6,7.7]
[1759187168758,3.27008237,213.64,213.6,7.7]
[1759187168957,3.27008237,213.64,213.63,7.7]
[1759187169156,3.27008237,213.66,213.63,7.7]
[1759187169361,3.27008237,213.65,213.64,7.7]
[1759187169558,3.27008237,213.66,213.63,7.7]
[1759187169856,3.27008237,213.65,213.59,1.69572682]
[1759187170458,7.39,213.64,213.6,4.2107]
[1759187170661,114.1,213.68,213.56,10.3502671]
[1759187170863,7.39,213.62,213.56,7.7]
[1759187171163,7.39,213.62,213.48,65.5374]
[1759187171164,3.26656832,213.61,213.55,7.7]
[1759187172262,3.26656832,213.61,213.57,7.7]
[1759187172766,3.26656832,213.61,213.56,4.2114]
[1759187173060,3.26656832,213.61,213.58,7.7]
[1759187173768,3.26656832,213.61,213.59,7.7]
[1759187174461,3.26656832,213.61,213.56,11.8015]
[1759187174666,7.95,213.6,213.56,11.8015]
[1759187175760,7.95,213.61,213.54,4.2119]
[1759187175960,3.26658113,213.6,213.52,7.59]
[1759187176163,7.95,213.59,213.52,7.59]
[1759187176757,12.161,213.59,213.52,11.8023]
[1759187176966,3.26667794,213.58,213.52,11.8023]
[1759187177166,7.95,213.56,213.52,11.8023]
[1759187177466,114.28,213.57,213.52,7.59]
[1759187177666,7.95,213.56,213.49,4.2128]
[1759187178064,7.95,213.56,213.48,7.59]
[1759187178365,10.6002671,213.56,213.48,7.59]
[1759187178560,3.26729008,213.55,213.48,7.59]
[1759187179671,7.95,213.54,213.42,7.59]
[1759187180170,4.2123,213.53,213.46,4.2134]
[1759187180371,5.91824676,213.52,213.4,7.59]
[1759187180559,30.45797966,213.51,213.4,7.59]
[1759187180759,7.95,213.51,213.43,7.59]
[1759187180965,22.84,213.5,213.43,7.59]
[1759187181573,7.95,213.51,213.43,7.59]
[1759187181776,7.95,213.56,213.44,7.59]
[1759187182069,26.0480967,213.55,213.44,7.59]
[1759187182275,7.95,213.53,213.47,4.2133]
[1759187182569,3.26853111,213.52,213.41,7.59]
[1759187182767,11.21853111,213.51,213.41,7.59]
[1759187182969,3.26901679,213.5,213.41,7.59]
[1759187183365,3.26901679,213.5,213.42,4.2143]
[1759187184374,7.83,213.49,213.41,7.59]
[1759187185561,7.83,213.46,213.35,7.99]
[1759187185763,7.83,213.44,213.35,7.99]
[1759187185967,5.21380292,213.53,213.35,7.99]
[1759187186169,5.21380292,213.53,213.39,12.2048]
[1759187186170,2.6502671,213.5,213.39,12.2048]
[1759187186474,7.83,213.48,213.39,12.2048]
[1759187186676,3.26722486,213.47,213.39,12.2048]
[1759187187075,5.91749196,213.47,213.39,12.2048]
[1759187188379,7.83,213.48,213.39,7.99]
[1759187188580,58.41,213.48,213.39,7.99]
[1759187189571,58.41,213.48,213.42,4.2143]
[1759187190181,7.83,213.48,213.42,4.2143]
[1759187190773,7.83,213.48,213.39,12.2048]
[1759187191688,111.1233,213.48,213.39,12.2048]
[1759187192681,7.83,213.47,213.39,12.2048]
[1759187192877,12.0435,213.47,213.39,12.2048]
[1759187195082,12.0437,213.46,213.39,12.2048]
[1759187195278,12.0437,213.46,213.39,7.99]
[1759187195883,4.2139,213.45,213.39,7.99]
[1759187196089,4.2139,213.45,213.32,65.5873]
[1759187196090,7.83,213.44,213.35,12.2056]
[1759187196493,12.0441,213.44,213.35,12.2056]
[1759187197293,4.2143,213.43,213.35,12.2056]
[1759187198082,7.83,213.42,213.35,7.99]
[1759187198886,4.2146,213.41,213.35,7.99]
[1759187199087,10.4802671,213.42,213.35,7.99]
[1759187199292,10.4802671,213.42,213.29,7.99]
[1759187199293,7.83,213.41,213.29,7.99]
[1759187199485,2.6502671,213.42,213.29,7.99]
[1759187199486,4.2153,213.38,213.29,7.99]
[1759187199695,7.83,213.37,213.29,7.99]
[1759187200193,7.83,213.37,213.3,4.2165]
[1759187200393,7.83,213.37,213.29,7.99]
[1759187200794,7.83,213.37,213.29,12.2067]
[1759187201289,7.83,213.37,213.29,7.99]
[1759187202693,7.83,213.37,213.31,4.2165]
[1759187202994,7.83,213.37,213.29,7.99]
[1759187203394,7.83,213.48,213.37,7.99]
[1759187203693,7.83,213.46,213.37,7.99]
[1759187204089,7.83,213.46,213.39,4.2149]
[1759187204297,7.83,213.46,213.37,7.99]
[1759187204993,497.7432671,213.5,213.33,7.99]
[1759187205195,3.24180719,213.49,213.33,10.6402671]
[1759187205390,7.83,213.48,213.33,10.6402671]
[1759187205592,3.24180719,213.47,213.33,10.6402671]
[1759187205789,4.2137,213.46,213.38,4.2149]
[1759187205990,7.83,213.45,213.38,4.2149]
[1759187206496,12.0439,213.45,213.36,7.99]
[1759187206694,7.83,213.45,213.36,7.99]
[1759187208698,7.83,213.45,213.39,4.2149]